[Event "*** Titled Tuesday Blitz"]
[Site "Chess.com"]
[Date "2021.02.16"]
[Round "10"]
[White "LuisFSiles"]
[Black "noamapplesauce"]
[Result "0-1"]
[WhiteElo "2286"]
[BlackElo "2151"]
[TimeControl "180+1"]
[EndTime "11:58:08 PST"]
[Termination "noamapplesauce won by checkmate"]

1. e4 {[%clk 0:03:00.9]} 1... e5 {[%clk 0:02:59.6]} 2. Nf3 {[%clk 0:02:59.4]}
2... Nc6 {[%clk 0:03:00.1]} 3. Bc4 {[%clk 0:02:58.6]} 3... Bc5 {[%clk
0:03:00.1]} 4. O-O {[%clk 0:02:54.8]} 4... Nf6 {[%clk 0:03:00.4]} 5. d4 {[%clk
0:02:53.8]} 5... Bxd4 {[%clk 0:03:00.6]} 6. Nxd4 {[%clk 0:02:52.9]} 6... Nxd4
{[%clk 0:03:00.5]} 7. Bg5 {[%clk 0:02:52.8]} 7... Ne6 {[%clk 0:02:55.3]} 8. f4
{[%clk 0:02:43.8]} 8... exf4 {[%clk 0:02:32.5]} 9. Bxe6 {[%clk 0:02:37.1]} 9...
dxe6 {[%clk 0:02:31.9]} 10. Qxd8+ {[%clk 0:02:32.6]} 10... Kxd8 {[%clk 0:02:32]}
11. e5 {[%clk 0:02:20.2]} 11... h6 {[%clk 0:02:26.6]} 12. Bh4 {[%clk 0:02:07.3]}
12... g5 {[%clk 0:02:24.6]} 13. Rxf4 {[%clk 0:01:54.6]} 13... Nd7 {[%clk
0:02:11.7]} 14. Rxf7 {[%clk 0:01:33.2]} 14... gxh4 {[%clk 0:02:03.6]} 15. Nc3
{[%clk 0:01:31.7]} 15... Ke8 {[%clk 0:01:58.9]} 16. Rf4 {[%clk 0:01:23.4]} 16...
Nxe5 {[%clk 0:01:55.9]} 17. Re1 {[%clk 0:01:21.6]} 17... Ng6 {[%clk 0:01:54]}
18. Rf6 {[%clk 0:01:21.6]} 18... Rg8 {[%clk 0:01:31.3]} 19. Ne4 {[%clk
0:01:14.1]} 19... Ke7 {[%clk 0:01:22.7]} 20. Ref1 {[%clk 0:01:11.4]} 20... Ne5
{[%clk 0:01:20.1]} 21. Rxh6 {[%clk 0:01:08.2]} 21... Rg7 {[%clk 0:01:19.1]} 22.
Rh8 {[%clk 0:00:58.3]} 22... b6 {[%clk 0:01:19.3]} 23. Rh5 {[%clk 0:00:51.5]}
23... Ng4 {[%clk 0:01:08.2]} 24. Rf4 {[%clk 0:00:41.6]} 24... Bb7 {[%clk
0:01:04.9]} 25. Ng5 {[%clk 0:00:39.8]} 25... Nf6 {[%clk 0:01:01.6]} 26. Rh6
{[%clk 0:00:39.8]} 26... Rxg5 {[%clk 0:00:59.4]} 27. Rhxf6 {[%clk 0:00:36]}
27... Rxg2+ {[%clk 0:00:59.3]} 28. Kf1 {[%clk 0:00:35.5]} 28... Rag8 {[%clk
0:00:54]} 29. Rf7+ {[%clk 0:00:35.4]} 29... Kd6 {[%clk 0:00:54.1]} 30. Rd4+
{[%clk 0:00:35.3]} 30... Ke5 {[%clk 0:00:52.7]} 31. Rff4 {[%clk 0:00:32.9]}
31... Rxc2 {[%clk 0:00:46.6]} 32. Rxh4 {[%clk 0:00:30.3]} 32... Ba6+ {[%clk
0:00:46]} 33. Ke1 {[%clk 0:00:27]} 33... Rg1# {[%clk 0:00:45.7]} 0-1

[Event "*** Titled Tuesday Blitz"]
[Site "Chess.com"]
[Date "2021.02.16"]
[Round "10"]
[White "SanQui14"]
[Black "novocane"]
[Result "1/2-1/2"]
[WhiteElo "2408"]
[BlackElo "2252"]
[TimeControl "180+1"]
[EndTime "11:58:11 PST"]
[Termination "Game drawn by stalemate"]

1. d4 {[%clk 0:03:00.9]} 1... Nf6 {[%clk 0:02:58.4]} 2. c4 {[%clk 0:03:01]} 2...
e6 {[%clk 0:02:57.9]} 3. f3 {[%clk 0:03:00.8]} 3... d5 {[%clk 0:02:53.6]} 4. e3
{[%clk 0:03:00]} 4... c5 {[%clk 0:02:53.2]} 5. cxd5 {[%clk 0:02:58.4]} 5... exd5
{[%clk 0:02:52.5]} 6. Nc3 {[%clk 0:02:56.8]} 6... cxd4 {[%clk 0:02:49.6]} 7.
Qxd4 {[%clk 0:02:53.3]} 7... Nc6 {[%clk 0:02:48.3]} 8. Bb5 {[%clk 0:02:52.3]}
8... Bd7 {[%clk 0:02:47.8]} 9. Bxc6 {[%clk 0:02:50.9]} 9... bxc6 {[%clk
0:02:47.6]} 10. Nge2 {[%clk 0:02:51.3]} 10... Bd6 {[%clk 0:02:46.5]} 11. O-O
{[%clk 0:02:50.1]} 11... Qe7 {[%clk 0:02:43.7]} 12. Qh4 {[%clk 0:02:49.1]} 12...
O-O {[%clk 0:02:36.6]} 13. Bd2 {[%clk 0:02:47.9]} 13... Rfe8 {[%clk 0:02:35.7]}
14. Rad1 {[%clk 0:02:46.8]} 14... c5 {[%clk 0:02:18.6]} 15. Bc1 {[%clk
0:02:45.4]} 15... Bc6 {[%clk 0:02:18.8]} 16. Kh1 {[%clk 0:02:43.6]} 16... Rad8
{[%clk 0:02:16.3]} 17. Rfe1 {[%clk 0:02:39.9]} 17... Bc7 {[%clk 0:02:12.3]} 18.
Nf4 {[%clk 0:02:35.1]} 18... Bxf4 {[%clk 0:01:56.7]} 19. Qxf4 {[%clk 0:02:34.7]}
19... d4 {[%clk 0:01:55]} 20. Nb1 {[%clk 0:02:22.9]} 20... Nd5 {[%clk 0:01:47]}
21. Qg3 {[%clk 0:02:11.5]} 21... Nxe3 {[%clk 0:01:33.7]} 22. Bxe3 {[%clk
0:02:09.4]} 22... dxe3 {[%clk 0:01:31.7]} 23. Rxd8 {[%clk 0:02:09.3]} 23... Qxd8
{[%clk 0:01:18.8]} 24. Nc3 {[%clk 0:02:08]} 24... Qd2 {[%clk 0:01:10.7]} 25. Re2
{[%clk 0:02:06.7]} 25... Qc1+ {[%clk 0:00:46]} 26. Qe1 {[%clk 0:02:06.6]} 26...
Qxe1+ {[%clk 0:00:40.2]} 27. Rxe1 {[%clk 0:02:07.5]} 27... Bb7 {[%clk 0:00:36]}
28. Nd1 {[%clk 0:02:03.3]} 28... e2 {[%clk 0:00:32]} 29. Nc3 {[%clk 0:02:03.4]}
29... Ba6 {[%clk 0:00:28]} 30. Kg1 {[%clk 0:02:03.8]} 30... f6 {[%clk
0:00:20.6]} 31. Kf2 {[%clk 0:02:03.7]} 31... Rd8 {[%clk 0:00:21]} 32. Ke3 {[%clk
0:01:59.8]} 32... Rd3+ {[%clk 0:00:20.4]} 33. Kf2 {[%clk 0:02:00]} 33... Rd2
{[%clk 0:00:20.4]} 34. b3 {[%clk 0:02:00.4]} 34... Rc2 {[%clk 0:00:19.9]} 35.
Nxe2 {[%clk 0:02:00.3]} 35... Rxa2 {[%clk 0:00:19.9]} 36. Ke3 {[%clk 0:01:59.6]}
36... Rxe2+ {[%clk 0:00:19.9]} 37. Rxe2 {[%clk 0:01:59.7]} 37... Bxe2 {[%clk
0:00:20.8]} 38. Kxe2 {[%clk 0:02:00.6]} 38... Kf7 {[%clk 0:00:20.9]} 39. Kd3
{[%clk 0:02:01.5]} 39... Ke6 {[%clk 0:00:21.2]} 40. Kc4 {[%clk 0:02:01.6]} 40...
Kd6 {[%clk 0:00:21.2]} 41. Kb5 {[%clk 0:02:01.6]} 41... Kd5 {[%clk 0:00:14.7]}
42. g4 {[%clk 0:02:01.2]} 42... g6 {[%clk 0:00:13.3]} 43. h4 {[%clk 0:02:01.3]}
43... f5 {[%clk 0:00:13.2]} 44. h5 {[%clk 0:02:00.3]} 44... fxg4 {[%clk
0:00:12.9]} 45. fxg4 {[%clk 0:02:00.8]} 45... gxh5 {[%clk 0:00:12.5]} 46. gxh5
{[%clk 0:02:01.7]} 46... h6 {[%clk 0:00:12.5]} 47. Ka6 {[%clk 0:01:53.5]} 47...
c4 {[%clk 0:00:10.4]} 48. bxc4+ {[%clk 0:01:50.4]} 48... Kxc4 {[%clk 0:00:10.8]}
49. Kxa7 {[%clk 0:01:51.1]} 49... Kd5 {[%clk 0:00:10.6]} 50. Kb6 {[%clk
0:01:51.7]} 50... Ke5 {[%clk 0:00:11.5]} 51. Kc5 {[%clk 0:01:52.3]} 51... Kf5
{[%clk 0:00:12.4]} 52. Kd4 {[%clk 0:01:52.9]} 52... Kg5 {[%clk 0:00:13.3]} 53.
Ke3 {[%clk 0:01:53.7]} 53... Kxh5 {[%clk 0:00:14.2]} 54. Kf2 {[%clk 0:01:54.3]}
54... Kg4 {[%clk 0:00:13.3]} 55. Kg1 {[%clk 0:01:55.2]} 55... Kh3 {[%clk
0:00:10.5]} 56. Kh1 {[%clk 0:01:56.1]} 56... h5 {[%clk 0:00:11.1]} 57. Kg1
{[%clk 0:01:57]} 57... h4 {[%clk 0:00:12]} 58. Kh1 {[%clk 0:01:57.9]} 58... Kg3
{[%clk 0:00:12.8]} 59. Kg1 {[%clk 0:01:58.8]} 59... h3 {[%clk 0:00:13.6]} 60.
Kh1 {[%clk 0:01:59.7]} 60... h2 {[%clk 0:00:14.5]} 1/2-1/2

[Event "*** Titled Tuesday Blitz"]
[Site "Chess.com"]
[Date "2021.02.16"]
[Round "10"]
[White "Ginger_GM"]
[Black "TigrVShlyape"]
[Result "1/2-1/2"]
[WhiteElo "2648"]
[BlackElo "2888"]
[TimeControl "180+1"]
[EndTime "11:58:15 PST"]
[Termination "Game drawn by repetition"]

1. e4 {[%clk 0:03:00.9]} 1... e5 {[%clk 0:02:55.1]} 2. Nf3 {[%clk 0:03:00.8]}
2... Nc6 {[%clk 0:02:54.6]} 3. Bc4 {[%clk 0:02:59.7]} 3... Nf6 {[%clk
0:02:53.9]} 4. d4 {[%clk 0:02:59.1]} 4... exd4 {[%clk 0:02:52.1]} 5. O-O {[%clk
0:02:58.4]} 5... Nxe4 {[%clk 0:02:52.2]} 6. Re1 {[%clk 0:02:57.8]} 6... d5
{[%clk 0:02:52.7]} 7. Bxd5 {[%clk 0:02:57.1]} 7... Qxd5 {[%clk 0:02:53.3]} 8.
Nc3 {[%clk 0:02:57.1]} 8... Qd8 {[%clk 0:02:53.5]} 9. Rxe4+ {[%clk 0:02:54.6]}
9... Be7 {[%clk 0:02:53.1]} 10. Nxd4 {[%clk 0:02:53.8]} 10... O-O {[%clk
0:02:26.3]} 11. Nxc6 {[%clk 0:02:50]} 11... bxc6 {[%clk 0:02:25.5]} 12. Qxd8
{[%clk 0:02:44.7]} 12... Bxd8 {[%clk 0:02:24.9]} 13. Bf4 {[%clk 0:02:42.5]}
13... Bf5 {[%clk 0:02:16.4]} 14. Rc4 {[%clk 0:02:41.3]} 14... Bxc2 {[%clk
0:02:12.3]} 15. Rxc6 {[%clk 0:02:38.3]} 15... Rb8 {[%clk 0:02:11.2]} 16. b3
{[%clk 0:02:12.4]} 16... Bf5 {[%clk 0:02:01.2]} 17. Bxc7 {[%clk 0:01:55.6]}
17... Rc8 {[%clk 0:01:57.7]} 18. Nd5 {[%clk 0:01:47.2]} 18... Be4 {[%clk
0:01:45.6]} 19. Bxd8 {[%clk 0:01:42.3]} 19... Rxc6 {[%clk 0:01:37.4]} 20. Ne7+
{[%clk 0:01:41.1]} 20... Kh8 {[%clk 0:01:38]} 21. Nxc6 {[%clk 0:01:40.8]} 21...
Bxc6 {[%clk 0:01:38.2]} 22. Be7 {[%clk 0:01:33.2]} 22... Re8 {[%clk 0:01:36.6]}
23. Bc5 {[%clk 0:01:33.1]} 23... a6 {[%clk 0:01:36.4]} 24. Be3 {[%clk
0:01:29.3]} 24... Bd5 {[%clk 0:01:33.7]} 25. Rd1 {[%clk 0:01:26.2]} 25... Be6
{[%clk 0:01:33.1]} 26. Rd6 {[%clk 0:01:25.5]} 26... Ra8 {[%clk 0:01:33]} 27. f4
{[%clk 0:01:03.6]} 27... h5 {[%clk 0:01:29.3]} 28. Bd4 {[%clk 0:00:55.6]} 28...
Kh7 {[%clk 0:01:26.9]} 29. Kf2 {[%clk 0:00:47.1]} 29... a5 {[%clk 0:01:26.2]}
30. Bc5 {[%clk 0:00:26.5]} 30... a4 {[%clk 0:01:24.2]} 31. bxa4 {[%clk
0:00:24.1]} 31... Rxa4 {[%clk 0:01:24.1]} 32. a3 {[%clk 0:00:22.5]} 32... Rxf4+
{[%clk 0:01:24.4]} 33. Ke3 {[%clk 0:00:22.6]} 33... Rc4 {[%clk 0:01:23.7]} 34.
Bb4 {[%clk 0:00:22.5]} 34... Kg6 {[%clk 0:01:21.4]} 35. Rd4 {[%clk 0:00:22.5]}
35... Rc2 {[%clk 0:01:20.6]} 36. Rd2 {[%clk 0:00:22.5]} 36... Rc8 {[%clk
0:01:16.8]} 37. a4 {[%clk 0:00:19.7]} 37... Rc4 {[%clk 0:01:11.7]} 38. Rd4
{[%clk 0:00:19.3]} 38... Rc2 {[%clk 0:01:07.3]} 39. Rd2 {[%clk 0:00:19.2]} 39...
Rc4 {[%clk 0:01:05.2]} 40. Rd4 {[%clk 0:00:18.9]} 40... Rc2 {[%clk 0:01:05.3]}
41. Rd2 {[%clk 0:00:19]} 41... Rc4 {[%clk 0:01:05]} 1/2-1/2

[Event "*** Titled Tuesday Blitz"]
[Site "Chess.com"]
[Date "2021.02.16"]
[Round "10"]
[White "csati17"]
[Black "woodhy"]
[Result "1-0"]
[WhiteElo "2592"]
[BlackElo "2455"]
[TimeControl "180+1"]
[EndTime "11:58:18 PST"]
[Termination "csati17 won by checkmate"]

1. c4 {[%clk 0:02:54.3]} 1... b6 {[%clk 0:02:59.2]} 2. Nc3 {[%clk 0:02:54.1]}
2... Bb7 {[%clk 0:02:59.2]} 3. e4 {[%clk 0:02:54.7]} 3... e6 {[%clk 0:02:59.5]}
4. g3 {[%clk 0:02:54.9]} 4... f5 {[%clk 0:02:58.9]} 5. Bg2 {[%clk 0:02:54.6]}
5... Nf6 {[%clk 0:02:59.1]} 6. Nge2 {[%clk 0:02:53.4]} 6... fxe4 {[%clk
0:02:57.1]} 7. O-O {[%clk 0:02:52.9]} 7... Qc8 {[%clk 0:02:51.4]} 8. Qc2 {[%clk
0:02:47.1]} 8... d5 {[%clk 0:02:44.1]} 9. Nf4 {[%clk 0:01:53.8]} 9... Bd6 {[%clk
0:02:33.4]} 10. Nce2 {[%clk 0:01:35.1]} 10... O-O {[%clk 0:02:30.2]} 11. Bh3
{[%clk 0:01:32.5]} 11... Re8 {[%clk 0:02:09.2]} 12. Nxe6 {[%clk 0:01:28.9]}
12... Rxe6 {[%clk 0:02:03.6]} 13. Nd4 {[%clk 0:01:28.8]} 13... Nbd7 {[%clk
0:01:42.2]} 14. Bxe6+ {[%clk 0:01:24.8]} 14... Kh8 {[%clk 0:01:41]} 15. cxd5
{[%clk 0:01:06.8]} 15... Nxd5 {[%clk 0:01:41.9]} 16. Qxe4 {[%clk 0:00:53.1]}
16... Nf4 {[%clk 0:01:40.1]} 17. Bxd7 {[%clk 0:00:27.8]} 17... Bxe4 {[%clk
0:01:05.3]} 18. Bxc8 {[%clk 0:00:27.9]} 18... Rxc8 {[%clk 0:00:55.8]} 19. gxf4
{[%clk 0:00:28.8]} 19... Bd3 {[%clk 0:00:50.4]} 20. Re1 {[%clk 0:00:27.1]} 20...
Bxf4 {[%clk 0:00:50.7]} 21. b3 {[%clk 0:00:22.4]} 21... c5 {[%clk 0:00:49.3]}
22. Ne6 {[%clk 0:00:20.2]} 22... Bh6 {[%clk 0:00:42.9]} 23. Bb2 {[%clk 0:00:19]}
23... Rc6 {[%clk 0:00:43]} 24. Nf4 {[%clk 0:00:15.2]} 24... Bg6 {[%clk
0:00:38.1]} 25. Nxg6+ {[%clk 0:00:15.5]} 25... Rxg6+ {[%clk 0:00:39]} 26. Kf1
{[%clk 0:00:15.8]} 26... Kg8 {[%clk 0:00:39.1]} 27. Re8+ {[%clk 0:00:14.6]}
27... Kf7 {[%clk 0:00:39.4]} 28. Rae1 {[%clk 0:00:15.5]} 28... Bxd2 {[%clk
0:00:39]} 29. R1e7# {[%clk 0:00:14.8]} 1-0

[Event "*** Titled Tuesday Blitz"]
[Site "Chess.com"]
[Date "2021.02.16"]
[Round "10"]
[White "lachesisQ"]
[Black "DrVelja"]
[Result "1-0"]
[WhiteElo "3059"]
[BlackElo "2886"]
[TimeControl "180+1"]
[EndTime "11:58:19 PST"]
[Termination "lachesisQ won by resignation"]

1. e4 {[%clk 0:02:46.8]} 1... c5 {[%clk 0:02:59.6]} 2. Nf3 {[%clk 0:02:45.7]}
2... Nc6 {[%clk 0:02:57.2]} 3. d4 {[%clk 0:02:46.6]} 3... cxd4 {[%clk
0:02:54.2]} 4. Nxd4 {[%clk 0:02:47.5]} 4... Nf6 {[%clk 0:02:54.9]} 5. Nc3 {[%clk
0:02:46.7]} 5... e5 {[%clk 0:02:55.1]} 6. Ndb5 {[%clk 0:02:47.1]} 6... d6 {[%clk
0:02:55.7]} 7. Nd5 {[%clk 0:02:46.5]} 7... Nxd5 {[%clk 0:02:55.9]} 8. exd5
{[%clk 0:02:47.4]} 8... Nb8 {[%clk 0:02:56.7]} 9. a4 {[%clk 0:02:44.9]} 9... Be7
{[%clk 0:02:53.7]} 10. Bd2 {[%clk 0:02:42.9]} 10... O-O {[%clk 0:02:51.4]} 11.
Be2 {[%clk 0:02:42.5]} 11... Nd7 {[%clk 0:02:49]} 12. a5 {[%clk 0:02:41.9]}
12... a6 {[%clk 0:02:44.2]} 13. Na3 {[%clk 0:02:40.7]} 13... f5 {[%clk
0:02:41.8]} 14. Nc4 {[%clk 0:02:40.1]} 14... e4 {[%clk 0:02:35.1]} 15. Bb4
{[%clk 0:02:39.6]} 15... Rf6 {[%clk 0:02:29.1]} 16. Qd2 {[%clk 0:02:37.8]} 16...
Rg6 {[%clk 0:02:13.8]} 17. g3 {[%clk 0:02:36.9]} 17... Qc7 {[%clk 0:02:00.8]}
18. h4 {[%clk 0:02:31.3]} 18... Nc5 {[%clk 0:01:56.3]} 19. Nb6 {[%clk
0:02:26.5]} 19... Rb8 {[%clk 0:01:55.5]} 20. Ra3 {[%clk 0:02:25.2]} 20... Bd7
{[%clk 0:01:46.8]} 21. Rc3 {[%clk 0:02:20.2]} 21... Be8 {[%clk 0:01:40]} 22. Bh5
{[%clk 0:02:11.3]} 22... Rh6 {[%clk 0:01:30.2]} 23. Bxe8 {[%clk 0:02:11]} 23...
Rxe8 {[%clk 0:01:31.1]} 24. Kd1 {[%clk 0:02:11.2]} 24... Bf6 {[%clk 0:01:26.7]}
25. Rc4 {[%clk 0:02:05]} 25... Be5 {[%clk 0:01:01.7]} 26. Kc1 {[%clk 0:02:03.3]}
26... Qe7 {[%clk 0:00:46.2]} 27. Kb1 {[%clk 0:02:01.9]} 27... Rg6 {[%clk
0:00:42.9]} 28. Rd1 {[%clk 0:02:00.4]} 28... Rd8 {[%clk 0:00:38.2]} 29. Bc3
{[%clk 0:01:57.7]} 29... Rg4 {[%clk 0:00:28.3]} 30. Qe2 {[%clk 0:01:51.2]} 30...
h5 {[%clk 0:00:22.6]} 31. Bd2 {[%clk 0:01:45.9]} 31... e3 {[%clk 0:00:18.3]} 32.
Bxe3 {[%clk 0:01:44.3]} 32... Rxc4 {[%clk 0:00:16.7]} 33. Qxc4 {[%clk
0:01:43.3]} 33... Ne4 {[%clk 0:00:16.5]} 34. Qd3 {[%clk 0:01:33.8]} 34... g6
{[%clk 0:00:14.9]} 35. Nc4 {[%clk 0:01:33.2]} 35... Bg7 {[%clk 0:00:15.2]} 36.
f3 {[%clk 0:01:29.4]} 36... Nxg3 {[%clk 0:00:13.3]} 37. Rg1 {[%clk 0:01:25.9]}
37... f4 {[%clk 0:00:11.9]} 38. Bxf4 {[%clk 0:01:23.1]} 38... Ne2 {[%clk
0:00:12.5]} 39. Bg5 {[%clk 0:01:21]} 1-0

[Event "*** Titled Tuesday Blitz"]
[Site "Chess.com"]
[Date "2021.02.16"]
[Round "10"]
[White "dpopadic"]
[Black "Guzman70"]
[Result "1-0"]
[WhiteElo "2361"]
[BlackElo "2240"]
[TimeControl "180+1"]
[EndTime "11:58:25 PST"]
[Termination "dpopadic won by checkmate"]

1. e4 {[%clk 0:03:00.9]} 1... c5 {[%clk 0:02:59.3]} 2. Nc3 {[%clk 0:03:00.1]}
2... Nc6 {[%clk 0:02:54.9]} 3. f4 {[%clk 0:02:59.4]} 3... e6 {[%clk 0:02:48.2]}
4. Nf3 {[%clk 0:02:58.8]} 4... Nf6 {[%clk 0:02:47.2]} 5. Bb5 {[%clk 0:02:58.2]}
5... Nd4 {[%clk 0:02:46.1]} 6. d3 {[%clk 0:02:54.5]} 6... a6 {[%clk 0:02:43.5]}
7. Bc4 {[%clk 0:02:54.6]} 7... b5 {[%clk 0:02:43.6]} 8. Bb3 {[%clk 0:02:54.7]}
8... Nxb3 {[%clk 0:02:38.5]} 9. axb3 {[%clk 0:02:54]} 9... Bb7 {[%clk
0:02:36.8]} 10. O-O {[%clk 0:02:53]} 10... d5 {[%clk 0:02:33.9]} 11. e5 {[%clk
0:02:51.6]} 11... Nd7 {[%clk 0:02:33.2]} 12. Qe1 {[%clk 0:02:51.6]} 12... Be7
{[%clk 0:02:28]} 13. f5 {[%clk 0:02:46.4]} 13... exf5 {[%clk 0:02:20.3]} 14. e6
{[%clk 0:02:46]} 14... fxe6 {[%clk 0:02:20.2]} 15. Qxe6 {[%clk 0:02:44.7]} 15...
Qb6 {[%clk 0:02:09.6]} 16. Qxf5 {[%clk 0:02:37.6]} 16... c4+ {[%clk 0:01:53.1]}
17. Kh1 {[%clk 0:02:34.4]} 17... Rf8 {[%clk 0:01:50.8]} 18. Qh5+ {[%clk
0:02:29.5]} 18... Qg6 {[%clk 0:01:45.1]} 19. Qxg6+ {[%clk 0:02:28.8]} 19... hxg6
{[%clk 0:01:45.9]} 20. Re1 {[%clk 0:02:23.4]} 20... cxb3 {[%clk 0:01:40.2]} 21.
cxb3 {[%clk 0:02:19.3]} 21... Nc5 {[%clk 0:01:19.9]} 22. Bg5 {[%clk 0:02:11.5]}
22... Rf7 {[%clk 0:00:44.6]} 23. Ne5 {[%clk 0:02:10.9]} 23... Rf5 {[%clk
0:00:34.4]} 24. Bxe7 {[%clk 0:01:58]} 24... Kxe7 {[%clk 0:00:33.9]} 25. b4
{[%clk 0:01:50]} 25... Nb3 {[%clk 0:00:24.1]} 26. Ra3 {[%clk 0:01:43.7]} 26...
Kd6 {[%clk 0:00:22.6]} 27. Nf3 {[%clk 0:01:33.7]} 27... Rxf3 {[%clk 0:00:18.9]}
28. gxf3 {[%clk 0:01:32.7]} 28... Nd4 {[%clk 0:00:19]} 29. Rf1 {[%clk
0:01:24.6]} 29... Rh8 {[%clk 0:00:15.6]} 30. Raa1 {[%clk 0:01:17.6]} 30... Nf5
{[%clk 0:00:15.4]} 31. Kg1 {[%clk 0:01:12.8]} 31... Ke5 {[%clk 0:00:15.2]} 32.
Rae1+ {[%clk 0:01:11.2]} 32... Kd4 {[%clk 0:00:15.4]} 33. Ne2+ {[%clk
0:01:05.9]} 33... Kxd3 {[%clk 0:00:14.5]} 34. Nf4+ {[%clk 0:01:05.9]} 34... Kc4
{[%clk 0:00:14]} 35. Rc1+ {[%clk 0:01:02.4]} 35... Kxb4 {[%clk 0:00:13.5]} 36.
Rc7 {[%clk 0:01:02.4]} 36... Bc8 {[%clk 0:00:12.6]} 37. Nxd5+ {[%clk 0:01:01.1]}
37... Ka5 {[%clk 0:00:12]} 38. Ra1# {[%clk 0:00:59.2]} 1-0

[Event "*** Titled Tuesday Blitz"]
[Site "Chess.com"]
[Date "2021.02.16"]
[Round "10"]
[White "AlexNovitz"]
[Black "Yaacovn"]
[Result "1-0"]
[WhiteElo "2204"]
[BlackElo "2698"]
[TimeControl "180+1"]
[EndTime "11:58:26 PST"]
[Termination "AlexNovitz won by resignation"]

1. e4 {[%clk 0:03:00.9]} 1... c6 {[%clk 0:01:55.7]} 2. d4 {[%clk 0:02:58.8]}
2... d5 {[%clk 0:01:55.6]} 3. exd5 {[%clk 0:02:59.7]} 3... cxd5 {[%clk
0:01:55.1]} 4. c4 {[%clk 0:03:00.3]} 4... Nf6 {[%clk 0:01:55.4]} 5. Nc3 {[%clk
0:03:00.9]} 5... e6 {[%clk 0:01:55.4]} 6. c5 {[%clk 0:03:01]} 6... Be7 {[%clk
0:01:54.4]} 7. Nf3 {[%clk 0:03:01]} 7... Ne4 {[%clk 0:01:53.7]} 8. Bd3 {[%clk
0:02:59]} 8... f5 {[%clk 0:01:52.6]} 9. O-O {[%clk 0:02:56.2]} 9... b6 {[%clk
0:01:38.5]} 10. Bb5+ {[%clk 0:02:49.4]} 10... Bd7 {[%clk 0:01:38]} 11. Qa4
{[%clk 0:02:49]} 11... bxc5 {[%clk 0:01:37]} 12. dxc5 {[%clk 0:02:40.9]} 12...
Nxc5 {[%clk 0:01:35.5]} 13. Qd4 {[%clk 0:02:36.7]} 13... O-O {[%clk 0:01:32.4]}
14. Bf4 {[%clk 0:02:29.9]} 14... Bxb5 {[%clk 0:01:28.4]} 15. Nxb5 {[%clk
0:02:29.5]} 15... a6 {[%clk 0:01:26.1]} 16. Nc7 {[%clk 0:02:26]} 16... Ra7
{[%clk 0:01:26]} 17. b4 {[%clk 0:02:16.6]} 17... Nc6 {[%clk 0:01:25.5]} 18. Qc3
{[%clk 0:01:52.7]} 18... Nxb4 {[%clk 0:01:13.1]} 19. Qxb4 {[%clk 0:01:49.4]}
19... Rxc7 {[%clk 0:01:11.7]} 20. Bxc7 {[%clk 0:01:49]} 20... Qxc7 {[%clk
0:01:12.4]} 21. Rac1 {[%clk 0:01:47.4]} 21... Qd6 {[%clk 0:01:12]} 22. Qd2
{[%clk 0:01:25.8]} 22... Ne4 {[%clk 0:01:09.1]} 23. Qa5 {[%clk 0:01:14.6]} 23...
Bf6 {[%clk 0:01:08.3]} 24. Rfd1 {[%clk 0:01:09.1]} 24... h6 {[%clk 0:01:07.9]}
25. Nd4 {[%clk 0:01:05.8]} 25... Bxd4 {[%clk 0:00:44.4]} 26. Rxd4 {[%clk
0:01:06.7]} 26... Qf4 {[%clk 0:00:37.4]} 27. Rf1 {[%clk 0:00:57.8]} 27... Qe5
{[%clk 0:00:25.2]} 28. Rdd1 {[%clk 0:00:50.2]} 28... Nc3 {[%clk 0:00:23.7]} 29.
Rde1 {[%clk 0:00:50.1]} 29... Ne2+ {[%clk 0:00:23.3]} 30. Kh1 {[%clk 0:00:50.3]}
30... f4 {[%clk 0:00:22.9]} 31. Qxa6 {[%clk 0:00:45.1]} 31... f3 {[%clk
0:00:22.3]} 32. gxf3 {[%clk 0:00:44.5]} 1-0